Cogmind - Beta 9.4 @@@ ROGUE MODE // 2020.02.29 @ 20:27:01 Player: Finestep Result: Destroyed self with Gamma Bomb Array Performance ------------- Evolutions (6) 3000 Regions Visited (23) 4600 Robots Destroyed (321) 1605 Value Destroyed (15395) 15395 Prototype IDs (56) 1120 Alien Tech Used (0) 0 Bonus (12089) 12089 TOTAL SCORE: 37809 Bonus ------- Triggered High Security 500 High Alert Combat Kills 4154 Follower Combat Kills 4224 Entered Garrisons 1200 Used RIF Installer 3000 Aligned with FarCom 300 Friendly Fire -1289 Cogmind --------- Core Integrity 0/1150 Matter 6/300 Energy 445/600 System Corruption 43% Temperature Cool (0) Movement Core (850) Ox16 Location -4/Factory Parts ------- > --- POWER (1) -------- (None) > --- PROPULSION (5) --- (None) > --- UTILITY (10) ----- Large Storage Unit Large Storage Unit Energy Well Improved Weapon Cycler Relay Coupler [Grunt] (20) > --- WEAPON (3) ------- Gamma Bomb Array > --- INVENTORY (16) --- Advanced Terrain Scanner Advanced Terrain Scan Processor Improved Core Analyzer Improved Armor Integrity Analyzer Precision Energy Filter Advanced Particle Charger Damper Plating Advanced Thermal Defense Suite HERF Cannon Mass Driver Heavy Gauss Cannon Power Sword Power Sword Peak State ------------ > --- POWER ------------ F-cell Engine > --- PROPULSION ------- Improved Heavy Treads Flexi-carbon Leg Myomer Leg Myomer Leg > --- UTILITY ---------- Large Storage Unit Large Storage Unit High-capacity Storage Unit High-capacity Storage Unit Improved Kinecellerator Improved Weapon Cycler Experimental Power Shielding Advanced Thermal Defense Suite Relay Coupler [Grunt] Relay Coupler [Sentry] > --- WEAPON ----------- Light Antimatter Cannon Light Antimatter Cannon Improved Remote Datajack > --- INVENTORY -------- Improved Heavy Treads Improved Cooling System Improved Cooling System Energy Well Matter Compressor Advanced Terrain Scanner Advanced Terrain Scan Processor Improved Core Analyzer Improved Armor Integrity Analyzer Precision Energy Filter Advanced Particle Charger Hardened Medium Armor Plating Damper Plating Relay Coupler [Swarmer] Relay Coupler [Grunt] Long-range Tractor Beam Heavy Proton Cannon HERF Cannon HERF Cannon Railgun AWS/Gauss Mass Driver Heavy Gauss Cannon Gamma Bomb Array Advanced Remote Datajack Power Sword Power Sword [Rating: 115] Favorites ----------- Power Reinforced Deuterium Engine Engine Reinforced Deuterium Engine Power Core Cooled Fission Core Reactor Antimatter Reactor Propulsion Light Treads Treads Light Treads Leg Enhanced Armored Leg Wheel Armored Wheel Utility High-capacity Storage Unit Device Improved Weapon Cycler Storage High-capacity Storage Unit Processor Advanced Targeting Computer Hackware Relay Coupler [Grunt] Protection Hardened Medium Armor Plating Weapon Remote Datajack Energy Gun Medium Laser Energy Cannon Advanced Beam Cannon Ballistic Gun KE Penetrator Ballistic Cannon Flak Cannon Launcher Grenade Launcher Special Weapon Remote Datajack Slashing Weapon Scythe Build | -11 -10 -10 -10 -9 -8 -8 -7 -7 -7 -7 -7 -7 -6 -6 -6 -6 -6 -6 -5 -5 -4 -4 -4 ------- Run | Scr Mat Min Exi Min Mat Gar Fac Was Fac Gar Fac Gar Fac Was Fac Gar Fac Gar Fac Gar Fac Was Fac Slots Evolved 12 | . . . . . 4 . 2 . . . . . 2 . . . . . 2 . 2 . . Power . | . . . . . . . . . . . . . . . . . . . . . . . . Propulsion 3 | . . . . . 1 . 1 . . . . . . . . . . . . . 1 . . Utility 8 | . . . . . 2 . 1 . . . . . 2 . . . . . 2 . 1 . . Weapon 1 | . . . . . 1 . . . . . . . . . . . . . . . . . . Parts Attached 444 | 7 17 2 1 7 28 12 30 17 21 2 26 36 11 7 9 28 11 26 40 20 34 4 48 Power 27 | 1 2 . . 2 3 . . 1 3 . 1 1 4 . 2 . 1 3 1 . . . 2 Engine 16 | 1 2 . . 1 3 . . . 1 . 1 1 3 . 1 . . 1 . . . . 1 Core 5 | . . . . 1 . . . . . . . . 1 . . . 1 1 1 . . . . Reactor 6 | . . . . . . . . 1 2 . . . . . 1 . . 1 . . . . 1 Propulsion 76 | 2 4 . 1 1 4 5 6 4 2 1 2 10 . 2 . 4 . 1 7 5 6 . 9 Treads 44 | . 1 . 1 . 2 4 2 4 1 1 . 7 . 1 . 3 . 1 3 4 6 . 3 Leg 11 | . . . . . . . . . . . . . . . . . . . 4 1 . . 6 Wheel 21 | 2 3 . . 1 2 1 4 . 1 . 2 3 . 1 . 1 . . . . . . . Hover . | . . . . . . . . . . . . . . . . . . . . . . . . Flight . | . . . . . . . . . . . . . . . . . . . . . . . . Utility 167 | 2 3 . . . 7 2 6 5 4 . 8 17 6 3 7 14 7 15 14 12 14 1 20 Device 55 | . . . . . . 2 . 3 . . 4 5 2 1 3 5 2 6 6 5 3 . 8 Storage 21 | 2 3 . . . 2 . 3 . . . . 1 1 . 2 3 . . 1 . 2 . 1 Processor 4 | . . . . . . . . . . . 1 . . . . . . . 2 . . . 1 Hackware 45 | . . . . . . . . . 1 . 2 8 1 1 1 4 4 6 2 5 6 . 4 Protection 42 | . . . . . 5 . 3 2 3 . 1 3 2 1 1 2 1 3 3 2 3 1 6 Artifact . | . . . . . . . . . . . . . . . . . . . . . . . . Weapon 174 | 2 8 2 . 4 14 5 18 7 12 1 15 8 1 2 . 10 3 7 18 3 14 3 17 Energy Gun 13 | 2 5 . . 1 2 . 1 2 . . . . . . . . . . . . . . . Energy Cannon 32 | . . . . . 1 3 2 2 . . 5 4 . . . 6 1 2 3 . 1 . 2 Ballistic Gun 55 | . 1 1 . 2 4 . 6 . 8 1 7 1 . . . . . . 6 2 8 . 8 Ballistic Cannon 13 | . . 1 . . 2 2 3 . . . . . . 2 . 1 . . . . . . 2 Launcher 5 | . . . . . . . 1 . 1 . . 1 . . . 1 . . . . . . 1 Special Weapon 40 | . 2 . . 1 5 . 2 1 3 . 2 2 1 . . 2 1 3 5 1 4 1 4 Impact Weapon . | . . . . . . . . . . . . . . . . . . . . . . . . Slashing Weapon 16 | . . . . . . . 3 2 . . 1 . . . . . 1 2 4 . 1 2 . Piercing Weapon . | . . . . . . . . . . . . . . . . . . . . . . . . Special Melee Weapon . | . . . . . . . . . . . . . . . . . . . . . . . . Unidentified Prototypes 9 | . . . . . 2 . 1 . 2 . . . . . 1 . . . . . . . 3 Parts Lost 59 | . 6 2 . . 1 3 1 . . 7 1 2 . . . 7 . . 2 1 5 . 21 Power 4 | . 1 . . . . . . . . 1 . . . . . . . . . . . . 2 Propulsion 17 | . 1 . . . . 1 . . . 1 . 1 . . . 2 . . . . 3 . 8 Utility 12 | . . . . . 1 . . . . 2 . . . . . 1 . . . . . . 8 Weapon 26 | . 4 2 . . . 2 1 . . 3 1 1 . . . 4 . . 2 1 2 . 3 Highest Loss Streak 8 | . 3 2 . . 1 1 1 . . 7 1 2 . . . 3 . . 1 1 4 . 8 Average Slot Usage (%) 92 | . 98 100 100 99 99 99 95 91 82 84 88 94 100 86 96 87 85 84 95 94 87 84 87 Engine 5 | . 13 14 14 13 8 9 7 3 . . 7 7 6 6 6 6 4 4 2 . . . 1 Core 1 | . . . . 1 . . . . . . . . . . . . 1 1 2 5 5 5 1 Treads 13 | . 1 14 14 14 9 24 15 14 6 7 7 13 13 13 13 17 20 20 7 17 16 10 5 Leg 1 | . . . . . . . . . . . . . . . . . . . 13 5 . . 11 Wheel 7 | . 26 14 14 14 18 2 11 7 6 7 14 13 13 13 13 2 . . . . . . . Device 5 | . . . . . . 7 7 7 . . 4 3 13 . 13 12 10 11 10 3 4 . 7 Storage 22 | . 28 28 28 28 27 27 23 23 23 23 23 23 20 20 20 23 20 20 17 17 17 21 20 Processor 1 | . . . . . . . . . . . 6 . . . . . . . 8 11 3 . . Hackware 5 | . . . . . . . . . 6 . . 5 8 6 6 4 8 8 8 8 20 26 17 Protection 4 | . . . . . 8 1 6 7 6 15 1 4 3 6 2 4 6 3 2 4 2 5 3 Energy Gun 1 | . 22 22 . . 3 . . . . . . . . . . . . . . . . . . Energy Cannon 5 | . . . . . 5 9 9 9 . . 1 14 13 8 . 5 6 6 4 10 . . . Ballistic Gun 4 | . 4 2 14 13 7 . 3 . 18 23 14 1 . . . . . . 5 . 10 4 5 Ballistic Cannon 3 | . . 2 14 14 8 15 7 7 . . . . . 4 13 3 . . . . . . 1 Special Weapon 2 | . . . . . 2 . . . 2 . . 6 6 6 6 4 5 3 3 3 3 5 3 Naked Turns . | . . . . . . . . . . . . . . . . . . . . . . . . Heaviest Build 157 | 15 56 55 55 59 100 100 119 125 123 123 115 122 122 157 155 128 125 125 157 155 133 133 140 Greatest Support 170 | 26 32 16 16 16 22 64 28 28 28 70 40 40 24 24 48 108 100 110 110 103 170 140 163 Greatest Overweight (x) 27 | 3 3 3 3 5 4 9 4 4 4 4 5 5 5 6 6 5 1 1 5 3 2 . 27 Average Overweight (x) 2 | . . 3 3 3 3 1 3 4 3 3 2 3 4 6 4 1 1 . 1 1 . . . Largest Inventory Capacity 32 | 8 18 18 18 18 24 24 26 26 26 26 26 26 26 26 26 26 26 26 26 26 32 32 32 Average Capacity 24 | 6 15 18 18 18 23 24 24 26 26 26 26 26 26 26 26 26 26 26 26 26 28 32 31 Most Carried 32 | 5 18 18 18 18 24 24 26 26 26 25 26 26 26 26 26 26 26 26 26 26 32 32 32 Average Carried 24 | 2 13 17 17 17 23 23 24 25 25 24 25 24 25 25 25 25 25 25 25 25 27 32 29 Final Capacity 32 | 8 18 18 18 18 24 24 26 26 26 26 26 26 26 26 26 26 26 26 26 26 32 32 16 Final Carried 32 | 5 18 16 18 18 24 24 26 26 25 24 25 26 26 26 25 26 25 26 26 26 32 32 15 Class Distribution -------------------- 28% | Bothacker-Mutant 16% | Hauler-Skirmisher 13% | Hauler-Mutant 12% | Mutant 9% | Botlord-Mutant 7% | Bothacker-Skirmisher 4% | Bothacker-Assassin Dominant Class ---------------- Mutant | -10/Materials Mutant | -10/Mines Mutant | -10/Exiles Mutant | -9/Mines Hauler-Skirmisher | -8/Materials Hauler-Skirmisher | -8/Garrison Hauler-Skirmisher | -7/Factory Bothacker-Mutant | -7/Waste Hauler-Skirmisher | -7/Factory Hauler-Tank | -7/Garrison Hauler-Mutant | -7/Factory Bothacker-Mutant | -7/Garrison Bothacker-Mutant | -6/Factory Bothacker-Mutant | -6/Waste Bothacker-Mutant | -6/Factory Bothacker-Mutant | -6/Garrison Bothacker-Mutant | -6/Factory Bothacker-Mutant | -6/Garrison Bothacker-Mutant | -5/Factory Bothacker-Mutant | -5/Garrison Botlord-Mutant | -4/Factory Botlord-Mutant | -4/Waste Botlord-Mutant | -4/Factory Resources | -11 -10 -10 -10 -9 -8 -8 -7 -7 -7 -7 -7 -7 -6 -6 -6 -6 -6 -6 -5 -5 -4 -4 -4 ----------- Run | Scr Mat Min Exi Min Mat Gar Fac Was Fac Gar Fac Gar Fac Was Fac Gar Fac Gar Fac Gar Fac Was Fac Matter Collected 12381 | 270 352 116 17 315 827 533 916 412 427 128 519 1000 165 223 31 1257 165 417 780 521 1482 . 1508 Remotely 116 | . . . . . . . . . . . . . . . . . . . . . . . 116 Salvage Created 14762 | 119 600 193 . 280 1177 606 1301 540 234 62 765 804 760 223 31 705 148 369 1759 704 1911 . 1471 Parts 684 | 6 45 11 . 14 93 41 59 4 12 2 32 27 20 . 1 36 6 14 83 37 79 . 62 Haulers Intercepted 12 | . 2 . . . 6 . 1 . 1 . . . 1 . . . . . . . 1 . . Recyclers Shooed 22 | 1 . 1 . 1 2 . . . . . 2 . 1 . . . . . 3 . 5 . 6 Parts Field Recycled . | . . . . . . . . . . . . . . . . . . . . . . . . Retrieved Matter . | . . . . . . . . . . . . . . . . . . . . . . . . Parts Self-Destructed . | . . . . . . . . . . . . . . . . . . . . . . . . Prevented . | . . . . . . . . . . . . . . . . . . . . . . . . Kills | -11 -10 -10 -10 -9 -8 -8 -7 -7 -7 -7 -7 -7 -6 -6 -6 -6 -6 -6 -5 -5 -4 -4 -4 ------- Run | Scr Mat Min Exi Min Mat Gar Fac Was Fac Gar Fac Gar Fac Was Fac Gar Fac Gar Fac Gar Fac Was Fac Combat Hostiles Destroyed 221 | . 11 5 . 9 19 21 26 . . 2 12 9 7 1 1 19 2 6 18 11 18 . 24 Melee 5 | . . . . . . . . . . . . . . . . . . 2 1 . 1 . 1 Guns 84 | . 11 3 . 6 5 . 3 . . 2 11 . . . . . . . 11 . 17 . 15 Cannons 116 | . . 2 . 3 14 21 20 . . . 1 5 4 1 1 15 2 3 5 11 . . 8 AOE 6 | . . . . . . . 2 . . . . 1 . . . 3 . . . . . . . Classes Destroyed 21 | 2 6 . . 2 3 1 2 . . . . . . 1 . 2 . . 1 . 1 . . Worker 19 | . 2 1 . . 7 . 1 . 1 . 1 . 1 . . . . . 3 . 1 . 1 Builder 18 | . . . . . 4 . 3 . 2 . . . . . . . . . 3 . 4 . 2 Tunneler 9 | 2 3 . . 1 . . 1 . . . . . . . . . . . 2 . . . . Hauler 12 | . 2 . . . 6 . 1 . 1 . . . 1 . . . . . . . 1 . . Recycler 19 | 1 . 1 . . 1 . 2 . 2 . 1 . 1 . . . . . 4 . 3 . 3 Mechanic 2 | . . . . . . . . . . . . . . . . . . . 1 . . . 1 Operator 2 | . 1 . . . 1 . . . . . . . . . . . . . . . . . . Watcher 14 | . 2 . . . 4 1 1 . . . . . 1 . . 1 1 . . . 2 . 1 Swarmer 45 | . 6 3 . 2 9 6 . . . . . . . . . 11 . 1 4 2 1 . . Saboteur 2 | . . . . . . . . . . . . . . . . . . . . . 2 . . Grunt 88 | . 5 2 . 3 3 10 16 . . 2 6 6 4 . . 4 . 5 7 5 6 . 4 Brawler 6 | . . . . . 1 1 . . . . 1 1 1 . . . 1 . . . . . . Duelist 13 | . . . . . . 1 3 . . . 1 . . . . 1 . . . . 3 . 4 Protector 2 | . . . . . . . 1 . . . 1 . . . . . . . . . . . . Sentry 17 | . . . . 1 5 3 2 . . . . 1 1 . . 1 . . . 1 1 . 1 Specialist 2 | . . . . . . . . . . . . . . . . 1 . . . 1 . . . Hunter 14 | . . . . . 1 . 1 . . . 1 1 1 . . . . . 2 2 2 . 3 Programmer 30 | . . . . . . . 3 . . . 2 . . . 1 . 1 . 6 . 5 . 12 Behemoth 2 | . . . . . . . . . . . . . . . . 1 . . . 1 . . . Compactor 1 | . . . . . . . . . . . . . . 1 . . . . . . . . . Assembled 3 | . . . . 3 . . . . . . . . . . . . . . . . . . . Thug 1 | . . . . 1 . . . . . . . . . . . . . . . . . . . Best Kill Streak 7 | 3 3 3 . 3 4 4 7 . 3 1 4 2 4 1 1 5 1 1 6 4 7 . 6 Combat Bots Only 6 | . 3 2 . 2 3 4 5 . . 1 4 2 4 1 1 5 1 1 4 4 6 . 6 Max Kills in Single Turn 2 | 2 1 1 . 2 1 1 2 . 2 1 2 1 1 1 1 1 1 1 2 1 1 . 2 Gunslinging 1 | . . . . . . . . . . . 1 . . . . . . . . . . . . Exploded 1 | . . . . . . . 1 . . . . 1 . . . 1 . . . . . . . Melee 1 | . . . . . . . . . . . . . . . . . . 1 1 . 1 . 1 Uniques/NPCs Destroyed . | . . . . . . . . . . . . . . . . . . . . . . . . Combat | -11 -10 -10 -10 -9 -8 -8 -7 -7 -7 -7 -7 -7 -6 -6 -6 -6 -6 -6 -5 -5 -4 -4 -4 -------- Run | Scr Mat Min Exi Min Mat Gar Fac Was Fac Gar Fac Gar Fac Was Fac Gar Fac Gar Fac Gar Fac Was Fac Damage Taken 22885 | . 435 250 . 290 795 893 1332 . 50 1975 1152 785 446 31 80 1839 132 395 1330 1052 2989 . 6634 Core 2433 | . 59 32 . 90 52 126 178 . . 128 79 90 60 . 14 254 8 32 40 39 114 . 1038 Absorbed by Shields 350 | . . . . . . . . . . 17 . 36 . . . 268 . 29 . . . . . Reduced by Siege Mode 678 | . . . . . . . . . . . . . . . . . . 5 . . 339 . 334 Core Remaining (%) 62 | 100 . . . 27 . 67 . . . . . 32 . . . . . 56 . 92 . . . Volleys Fired 1279 | 3 71 25 . 27 97 85 91 . 17 16 47 140 34 22 12 94 24 68 85 68 124 6 123 Largest 3 | 2 2 2 . 2 3 3 3 . 3 3 3 3 2 2 2 3 1 1 2 2 3 1 3 Hottest 207 | 80 100 100 . 100 137 180 180 . 84 84 207 187 162 106 106 187 110 110 110 60 135 40 168 Shots Fired 2313 | 6 133 50 . 52 249 177 241 . 39 38 90 179 57 35 20 126 24 68 147 116 221 6 239 Gun 992 | 6 131 44 . 25 119 8 56 . 33 38 77 62 . . . . . . 64 . 190 . 139 Cannon 1069 | . . 6 . 25 112 169 179 . . . 9 81 46 26 20 103 9 40 69 94 1 . 80 Launcher 22 | . . . . . . . 5 . 3 . . 7 . . . 6 . . . . . . 1 Special 230 | . 2 . . 2 18 . 1 . 3 . 4 29 11 9 . 17 15 28 14 22 30 6 19 Kinetic 1264 | . 27 12 . 50 157 96 134 . 33 38 77 62 . 26 20 74 . . 64 . 190 . 204 Thermal 549 | . 53 38 . 2 92 81 101 . . . . 2 . . . 2 1 8 59 94 1 . 15 Explosive 8 | . . . . . . . 5 . 3 . . . . . . . . . . . . . . Electromagnetic 284 | 6 53 . . . . . . . . . 9 86 46 . . 33 8 32 10 . . . 1 Robot Hit Streak 63 | 4 8 6 . 8 9 13 13 . 9 18 22 63 11 12 1 12 9 20 39 19 19 9 20 Robot Miss Streak 9 | . 6 3 . 2 6 9 4 . 2 2 2 1 2 2 4 4 1 1 4 1 3 . 4 Penetration Max 2 | . . . . . . . . . 1 1 1 . . . . . . . 2 . 2 . 1 Secondary Targets 8 | . . . . . . . . . . . 2 . . . . . . . 1 . 2 . 3 Max Gunslinging Chain 1 | . . . . . . . . . . . 1 . . . . . . . 1 . 1 . 1 Autonomous 25 | . . . . . . . . . . . . . . . . . . . . . . . 25 Shots Hit Robots 1517 | 4 69 28 . 32 114 105 145 25 26 28 70 133 43 27 1 69 21 42 114 70 162 10 179 Core Hits 635 | 4 28 10 . 14 60 65 90 2 10 10 30 37 12 5 1 34 4 8 52 28 65 2 64 Critical Hits 62 | . . 1 . 3 8 4 12 2 . . 7 1 . 1 . 2 . . 4 1 8 . 8 Critical Kills 22 | . . 1 . 2 5 1 3 . . . 3 . . . . . . . 2 1 1 . 3 Critical Parts Destroyed 38 | . . . . 1 3 3 9 2 . . 4 1 . . . 1 . . 2 . 7 . 5 Melee Attacks 85 | . . . . . . . 11 25 . . . . . . . . 1 15 15 6 2 5 5 Impact . | . . . . . . . . . . . . . . . . . . . . . . . . Slashing 85 | . . . . . . . 11 25 . . . . . . . . 1 15 15 6 2 5 5 Piercing . | . . . . . . . . . . . . . . . . . . . . . . . . Sneak Attacks 14 | . . . . . . . . . . . . . . . . . . 1 4 . . 5 4 Combat Hostiles 9 | . . . . . . . . . . . . . . . . . . 1 1 . . 5 2 Follow-up Attacks . | . . . . . . . . . . . . . . . . . . . . . . . . Damage Inflicted 37411 | 68 723 380 . 512 2108 1347 3866 1348 583 613 2069 2458 1452 748 184 1798 338 638 3686 1466 4131 272 6623 Guns 15158 | 68 722 297 . 228 792 30 405 . 549 579 1961 646 . . . . . . 1644 . 4097 . 3140 Cannons 16840 | . . 83 . 284 1295 1317 2649 . . . 92 1255 1334 748 42 1526 338 509 1657 1466 34 . 2211 Explosions 2669 | . . . . . . . 812 . 34 . . 557 118 . 142 241 . . . . . . 765 Melee 2612 | . . . . . . . . 1348 . . . . . . . . . 119 375 . . 272 498 Ramming 111 | . 1 . . . . . . . . 34 16 . . . . 31 . 10 10 . . . 9 Kinetic 21339 | . 60 101 . 512 1454 1055 1692 . 549 579 1961 646 . 748 42 1193 . . 1644 . 4097 . 5006 Thermal 7399 | . 386 279 . . 654 292 1362 . . . . 233 118 . 142 32 37 . 1322 1466 34 . 1042 Explosive 846 | . . . . . . . 812 . 34 . . . . . . . . . . . . . . Electromagnetic 5104 | 68 276 . . . . . . . . . 92 1579 1334 . . 542 301 509 335 . . . 68 Impact . | . . . . . . . . . . . . . . . . . . . . . . . . Slashing 2612 | . . . . . . . . 1348 . . . . . . . . . 119 375 . . 272 498 Piercing . | . . . . . . . . . . . . . . . . . . . . . . . . Highest Corruption 43 | . 4 4 4 4 1 1 4 4 4 4 8 8 . . . . 1 1 5 5 9 25 43 Average Corruption 5 | . 2 4 4 4 1 1 1 4 4 4 4 8 . . . . 1 1 4 5 2 18 33 Corruption Purged . | . . . . . . . . . . . . . . . . . . . . . . . . Effects 535 | . 8 22 14 23 11 8 7 13 17 16 30 79 . . . . . 10 14 70 14 9 170 Message Errors 99 | . 4 5 3 7 2 4 2 5 3 4 3 12 . . . . . 5 2 17 2 3 16 Matter Fused 92 | . . 7 5 5 . . . 3 6 3 4 17 . . . . . . 3 19 2 2 16 Heat Flow Errors 41 | . . 4 3 1 . . . 1 2 1 4 6 . . . . . . 2 8 1 . 8 Energy Discharges 57 | . 1 3 2 4 2 . 3 2 2 4 4 15 . . . . . 1 1 9 . . 4 Parts Rejected 6 | . . . . . . . . . . . . . . . . . . . . . . 1 5 Data Loss (minor) 49 | . 2 3 1 4 3 1 . 1 3 2 4 8 . . . . . 2 . 4 3 . 8 Data Loss (major) 10 | . . . . . . . . . . . 1 3 . . . . . . 1 3 . . 2 Misfires 13 | . . . . . . . . . . . . 4 . . . . . . 1 2 1 . 5 Misdirections 15 | . . . . . . . . . . . . . . . . . . . . . . 1 14 Targeting Errors 137 | . 1 . . 2 4 3 2 1 1 2 8 14 . . . . . 2 4 8 4 2 79 Weapon Failures 16 | . . . . . . . . . . . 2 . . . . . . . . . 1 . 13 Overload Shots . | . . . . . . . . . . . . . . . . . . . . . . . . Overflow Damage 1110 | . . . . 10 . . 125 33 . . . 37 74 . 72 20 10 . 122 22 . . 585 Projectiles 480 | . . . . 10 . . 31 . . . . 1 69 . . 20 10 . 122 22 . . 195 Explosions 487 | . . . . . . . 94 . . . . 36 5 . 72 . . . . . . . 280 Melee 143 | . . . . . . . . 33 . . . . . . . . . . . . . . 110 Knockbacks 88 | . . . . 5 9 26 19 . . . . . . . . 10 . . . . . . 19 Impact . | . . . . . . . . . . . . . . . . . . . . . . . . Kinetic 88 | . . . . 5 9 26 19 . . . . . . . . 10 . . . . . . 19 Secondary . | . . . . . . . . . . . . . . . . . . . . . . . . Self-Inflicted Damage 188 | . 16 . . . . . . . . . . 58 44 . 20 34 . . 5 . . . 11 Shots 11 | . 1 . . . . . . . . . . 2 1 . 1 5 . . . . . . 1 Rammed 14 | . 1 . . . . . . . . 6 3 . . . . 2 . 1 1 . . . . Targets Rammed 15 | . 1 . . . . . . . . 6 3 . . . . 2 . 1 1 . . . 1 Kicked 1 | . . . . . . . . . . . . . . . . . . . . . . . 1 Crushed . | . . . . . . . . . . . . . . . . . . . . . . . . Highest Temperature 471 | 36 180 432 276 199 344 471 392 219 255 280 296 412 131 315 8 279 226 248 257 268 128 12 394 Average Temperature 88 | 17 44 130 120 41 93 92 77 124 59 65 140 117 50 160 6 64 87 81 59 62 22 7 110 Received Heat Transfer 3714 | . 96 126 . 30 126 387 324 . 18 483 234 291 138 . . 294 33 105 120 144 207 . 558 Effects 29 | . . 2 1 . 1 6 4 . . 3 . 3 . . . . 1 5 . . . . 3 Shutdowns 5 | . . 1 . . . 2 1 . . . . 1 . . . . . . . . . . . Energy Bleed 9 | . . 1 1 . 1 . 2 . . . . 2 . . . . 1 . . . . . 1 Interference 12 | . . . . . . 2 . . . 3 . . . . . . . 5 . . . . 2 Matter Decay 1 | . . . . . . 1 . . . . . . . . . . . . . . . . . Short Circuit 1 | . . . . . . 1 . . . . . . . . . . . . . . . . . Damage (minor) 1 | . . . . . . . 1 . . . . . . . . . . . . . . . . Siege Activations 8 | . . . . . . . . . . . . . . . . . . 1 . . 3 . 4 Total Turns 210 | . . . . . . . . . . . . . . . . . . 35 . . 84 . 91 Longest Duration 46 | . . . . . . . . . . . . . . . . . . 35 . . 36 . 46 Robots Corrupted 14 | . 1 . . . . . . . . . . 4 6 . . 1 . 1 1 . . . . Combat Hostiles 9 | . . . . . . . . . . . . 3 3 . . 1 . 1 1 . . . . Parts Fried 21 | . 1 . . . . . . . . . 1 4 8 . . 2 1 2 2 . . . . Impact Corruptions . | . . . . . . . . . . . . . . . . . . . . . . . . Robots Melted 1 | . . . . . . . 1 . . . . . . . . . . . . . . . . Combat Hostiles 1 | . . . . . . . 1 . . . . . . . . . . . . . . . . Parts Melted 21 | . 3 . . . 2 . 5 . . . . . . . . 1 . . 7 . . . 3 Heat Transferred 10984 | . 1147 814 . . 1258 518 2443 . . . . 350 100 . 50 50 50 . 1628 1806 37 . 733 Parts Sabotaged 2 | . . . . . . . . . . . . . . . . . . . . . 2 . . Parts Stolen . | . . . . . . . . . . . . . . . . . . . . . . . . Parts Stripped . | . . . . . . . . . . . . . . . . . . . . . . . . Power Chain Reactions 4 | . . . . . . . . . . . . 3 1 . . . . . . . . . . Missiles Intercepted . | . . . . . . . . . . . . . . . . . . . . . . . . Alert | -11 -10 -10 -10 -9 -8 -8 -7 -7 -7 -7 -7 -7 -6 -6 -6 -6 -6 -6 -5 -5 -4 -4 -4 ------- Run | Scr Mat Min Exi Min Mat Gar Fac Was Fac Gar Fac Gar Fac Was Fac Gar Fac Gar Fac Gar Fac Was Fac Peak Influence 1727 | 15 357 125 . 78 287 1057 1485 519 1726 1727 1342 1489 913 1629 1144 1239 724 1107 815 824 1356 1149 843 Average Influence 714 | 2 217 64 . 33 147 706 1047 442 607 1587 1135 1207 762 895 1099 1080 610 792 683 647 859 694 605 Maximum Alert Level 5 | . 1 . . . 1 3 4 2 5 5 4 4 3 5 4 4 3 4 3 3 4 4 3 Low Security (%) 14 | 100 38 100 . 100 70 3 . . . . . . . . . . . . . . . . . Level 1 9 | . 61 . . . 29 14 . 38 66 . . . . 28 . . . . . 3 . . 13 Level 2 23 | . . . . . . 27 22 61 1 . . . 12 13 . 11 89 26 52 53 42 62 36 Level 3 28 | . . . . . . 54 15 . 10 . 23 24 87 11 14 30 10 56 47 43 21 25 49 Level 4 22 | . . . . . . . 62 . 13 50 76 75 . 43 85 57 . 17 . . 35 12 . Level 5 . | . . . . . . . . . 7 19 . . . 2 . . . . . . . . . High Security . | . . . . . . . . . . 30 . . . . . . . . . . . . . Max Security . | . . . . . . . . . . . . . . . . . . . . . . . . Squads Dispatched 103 | . 5 . . . 3 . 14 . 8 4 7 . 10 . 4 . 10 . 8 . 16 . 14 Investigation 22 | . 3 . . . 2 . 4 . 2 . 2 . 2 . 1 . 1 . 3 . 1 . 1 Extermination 20 | . . . . . . . 2 . 1 . 1 . 2 . 1 . 2 . 4 . 3 . 4 Reinforcement 16 | . 2 . . . 1 . 2 . 1 . . . 2 . 1 . 1 . . . 3 . 3 Assault 26 | . . . . . . . 4 . 1 4 3 . 1 . 1 . 1 . 1 . 6 . 4 Garrison 19 | . . . . . . . 2 . 3 . 1 . 3 . . . 5 . . . 3 . 2 Intercept . | . . . . . . . . . . . . . . . . . . . . . . . . Construction Impeded 9 | . . . . . . . 1 . 1 . . . 1 . . . 1 . . . 3 . 2 Haulers Reinforced . | . . . . . . . . . . . . . . . . . . . . . . . . Stealth | -11 -10 -10 -10 -9 -8 -8 -7 -7 -7 -7 -7 -7 -6 -6 -6 -6 -6 -6 -5 -5 -4 -4 -4 --------- Run | Scr Mat Min Exi Min Mat Gar Fac Was Fac Gar Fac Gar Fac Was Fac Gar Fac Gar Fac Gar Fac Was Fac Distress Signals 17 | . . . . . 3 1 2 . 2 . . . . . . 1 . . 1 . 3 . 4 Communications Jammed . | . . . . . . . . . . . . . . . . . . . . . . . . Distress Signals . | . . . . . . . . . . . . . . . . . . . . . . . . Times Spotted 557 | . 25 7 . 23 37 25 41 1 20 40 33 28 18 6 2 39 18 30 26 31 48 6 53 Peak Tracking Total 23 | . 3 2 . 11 5 5 10 . 5 23 6 4 5 3 2 8 4 6 5 6 7 5 10 Tactical Retreats 34 | . 2 3 . 3 4 4 5 . . 1 1 1 2 . . 2 . 2 . 1 1 1 1 Traps | -11 -10 -10 -10 -9 -8 -8 -7 -7 -7 -7 -7 -7 -6 -6 -6 -6 -6 -6 -5 -5 -4 -4 -4 ------- Run | Scr Mat Min Exi Min Mat Gar Fac Was Fac Gar Fac Gar Fac Was Fac Gar Fac Gar Fac Gar Fac Was Fac Traps Triggered 64 | . 2 . . . 1 4 3 . 1 2 2 16 1 . 2 7 . 6 2 11 2 . 2 Indirectly . | . . . . . . . . . . . . . . . . . . . . . . . . Trap Hack Attempts . | . . . . . . . . . . . . . . . . . . . . . . . . Triggered . | . . . . . . . . . . . . . . . . . . . . . . . . Disarmed . | . . . . . . . . . . . . . . . . . . . . . . . . Reprogrammed . | . . . . . . . . . . . . . . . . . . . . . . . . Reused . | . . . . . . . . . . . . . . . . . . . . . . . . Traps Extracted . | . . . . . . . . . . . . . . . . . . . . . . . . Installed . | . . . . . . . . . . . . . . . . . . . . . . . . Triggered . | . . . . . . . . . . . . . . . . . . . . . . . . Exploded 1 | . . . 1 . . . . . . . . . . . . . . . . . . . . Machines | -11 -10 -10 -10 -9 -8 -8 -7 -7 -7 -7 -7 -7 -6 -6 -6 -6 -6 -6 -5 -5 -4 -4 -4 ---------- Run | Scr Mat Min Exi Min Mat Gar Fac Was Fac Gar Fac Gar Fac Was Fac Gar Fac Gar Fac Gar Fac Was Fac Machines Disabled 88 | . 4 . . . 1 3 5 . 17 . 9 4 1 . 2 4 . 6 4 6 10 . 12 Max in Single Turn 4 | . 3 . . . 1 1 1 . 1 . 2 1 1 . 2 1 . 1 1 1 4 . 4 Garrison Access 3 | . . . . . . . 1 . 1 . . . . . . . . . . . . . 1 Garrison Relay 17 | . . . . . . 3 . . . . . 3 . . . 3 . 4 . 4 . . . Phase Generator 1 | . . . . . . . . . . 1 . . . . . . . . . . . . . Machines Sabotaged . | . . . . . . . . . . . . . . . . . . . . . . . . Garrisons Compromised . | . . . . . . . . . . . . . . . . . . . . . . . . Overloaded Fab Kills . | . . . . . . . . . . . . . . . . . . . . . . . . Fab Network Shutdowns 2 | . . . . . . . 1 . . . . . . . . . . . . . 1 . . Hacking | -11 -10 -10 -10 -9 -8 -8 -7 -7 -7 -7 -7 -7 -6 -6 -6 -6 -6 -6 -5 -5 -4 -4 -4 --------- Run | Scr Mat Min Exi Min Mat Gar Fac Was Fac Gar Fac Gar Fac Was Fac Gar Fac Gar Fac Gar Fac Was Fac Machines Accessed 74 | . 7 1 2 . 14 . 11 . 6 . 7 . 5 . 2 . 1 . 7 . 5 . 6 Terminals 33 | . 5 1 . . 11 . 4 . 1 . 2 . 1 . 1 . . . 1 . 2 . 4 Fabricators 6 | . . . . . . . 2 . 1 . . . 1 . . . . . 1 . 1 . . Repair Stations 8 | . . . . . . . . . 1 . 3 . 1 . . . . . 2 . . . 1 Recycling Units 13 | . 2 . . . 2 . 3 . 1 . 1 . 1 . . . . . 1 . 1 . 1 Scanalyzers 1 | . . . . . . . . . . . . . . . . . . . 1 . . . . Garrison Access 11 | . . . . . 1 . 2 . 2 . 1 . 1 . 1 . 1 . 1 . 1 . . Total Hacks 223 | . 25 7 5 . 49 . 30 . 20 . 18 . 16 . 6 . 3 . 22 . 8 . 14 Successful 139 | . 19 3 5 . 37 . 16 . 12 . 11 . 10 . 2 . 3 . 12 . 5 . 4 Failed 83 | . 5 4 . . 12 . 14 . 8 . 7 . 6 . 4 . . . 10 . 3 . 10 Catastrophic 14 | . 1 1 . . 1 . 2 . 1 . . . . . 2 . . . . . 1 . 5 Database Lockouts 1 | . 1 . . . . . . . . . . . . . . . . . . . . . . Manual 77 | . 14 7 1 . 34 . 3 . 4 . 2 . 1 . 3 . 1 . 2 . 1 . 4 Terminals 114 | . 21 7 . . 42 . 9 . 4 . 6 . 3 . 2 . . . 5 . 4 . 11 Fabricators 18 | . . . . . . . 7 . 2 . . . 3 . . . . . 4 . 2 . . Repair Stations 24 | . . . . . . . . . 7 . 6 . 6 . . . . . 4 . . . 1 Recycling Units 33 | . 4 . . . 6 . 9 . 3 . 4 . 2 . . . . . 2 . 1 . 2 Scanalyzers 5 | . . . . . . . . . . . . . . . . . . . 5 . . . . Garrison Access 24 | . . . . . 1 . 5 . 4 . 2 . 2 . 4 . 3 . 2 . 1 . . Terminal Hacks 51 | . 8 2 5 . 18 . 3 . 1 . 3 . 2 . 1 . . . 3 . 2 . 3 Record 4 | . . . 4 . . . . . . . . . . . . . . . . . . . . Part Schematic 3 | . . . . . 3 . . . . . . . . . . . . . . . . . . Robot Schematic 3 | . 1 . . . 2 . . . . . . . . . . . . . . . . . . Robot Analysis 2 | . . 2 . . . . . . . . . . . . . . . . . . . . . Prototype ID Bank 8 | . 3 . . . 2 . 1 . 1 . . . 1 . . . . . . . . . . Branch Access Points 2 | . . . . . . . . . . . 1 . . . . . . . . . . . 1 Terminal Index 1 | . . . . . 1 . . . . . . . . . . . . . . . . . . Scanalyzer Index 1 | . . . . . 1 . . . . . . . . . . . . . . . . . . Unreport Threat 5 | . . . . . 1 . . . . . . . . . 1 . . . 2 . . . 1 Locate Traps 3 | . . . . . 1 . . . . . 1 . . . . . . . . . . . 1 Recall Investigation 4 | . 1 . . . 2 . . . . . 1 . . . . . . . . . . . . Recall Extermination 1 | . . . . . . . 1 . . . . . . . . . . . . . . . . Hauler Manifests 3 | . 1 . . . 1 . . . . . . . . . . . . . . . 1 . . Registered Components 1 | . . . . . 1 . . . . . . . . . . . . . . . . . . Registered Prototypes 1 | . . . . . . . . . . . . . 1 . . . . . . . . . . Zone Layout 8 | . 2 . . . 3 . 1 . . . . . . . . . . . 1 . 1 . . EX-Prototype ID Bank 1 | . . . 1 . . . . . . . . . . . . . . . . . . . . Fabricator Hacks 11 | . . . . . . . 5 . 1 . . . 2 . . . . . 2 . 1 . . Load Schematic 4 | . . . . . . . 2 . . . . . 1 . . . . . 1 . . . . Build 7 | . . . . . . . 3 . 1 . . . 1 . . . . . 1 . 1 . . Repair Station Hacks 14 | . . . . . . . . . 6 . 5 . 3 . . . . . . . . . . Scan Component 8 | . . . . . . . . . 3 . 3 . 2 . . . . . . . . . . Repair 6 | . . . . . . . . . 3 . 2 . 1 . . . . . . . . . . Recycling Unit Hacks 10 | . 2 . . . 2 . 2 . . . 1 . 2 . . . . . . . 1 . . Retrieve Matter 1 | . . . . . . . . . . . . . 1 . . . . . . . . . . Retrieve Components 9 | . 2 . . . 2 . 2 . . . 1 . 1 . . . . . . . 1 . . Scanalyzer 4 | . . . . . . . . . . . . . . . . . . . 4 . . . . Insert Component 2 | . . . . . . . . . . . . . . . . . . . 2 . . . . Analyze 2 | . . . . . . . . . . . . . . . . . . . 2 . . . . Garrison Access Hacks 14 | . . . . . 1 . 4 . 3 . 1 . 1 . 1 . 2 . 1 . . . . Unlock Access 9 | . . . . . 1 . 1 . 2 . 1 . 1 . 1 . 1 . 1 . . . . Seal Access 1 | . . . . . . . 1 . . . . . . . . . . . . . . . . Coupler Status 4 | . . . . . . . 2 . 1 . . . . . . . 1 . . . . . . Unauthorized Hacks 83 | . 18 3 . . 34 . 5 . 3 . 3 . 1 . 3 . 2 . 4 . 2 . 5 Terminals 23 | . 7 1 . . 14 . . . . . . . . . . . . . . . . . 1 Track 7 | . 3 1 . . 3 . . . . . . . . . . . . . . . . . . Assimilate 3 | . . . . . 2 . . . . . . . . . . . . . . . . . 1 Botnet 11 | . 3 . . . 8 . . . . . . . . . . . . . . . . . . Operators 2 | . 1 . . . 1 . . . . . . . . . . . . . . . . . . Fabricators . | . . . . . . . . . . . . . . . . . . . . . . . . Repair Stations 1 | . . . . . . . . . . . . . . . . . . . 1 . . . . Mechanics 1 | . . . . . . . . . . . . . . . . . . . 1 . . . . Recycling Units 5 | . 2 . . . 2 . 1 . . . . . . . . . . . . . . . . Tunnel 5 | . 2 . . . 2 . 1 . . . . . . . . . . . . . . . . Scanalyzers . | . . . . . . . . . . . . . . . . . . . . . . . . Garrison Access 6 | . . . . . . . 1 . 1 . 1 . . . . . 1 . 1 . 1 . . Eject 6 | . . . . . . . 1 . 1 . 1 . . . . . 1 . 1 . 1 . . Data Cores Recovered . | . . . . . . . . . . . . . . . . . . . . . . . . Used . | . . . . . . . . . . . . . . . . . . . . . . . . Hacking Detections 58 | . 5 1 . . 11 . 11 . 4 . 5 . 4 . 2 . 1 . 6 . 2 . 6 Full Trace Events 11 | . . 1 . . . . 2 . 1 . 1 . 2 . 1 . . . 2 . . . 1 Feedback Events 1 | . . . . . . . 1 . . . . . . . . . . . . . . . . Corruption 1 | . . . . . . . 1 . . . . . . . . . . . . . . . . Feedback Blocked . | . . . . . . . . . . . . . . . . . . . . . . . . Robot Schematics Acquired 3 | . 1 . . . 2 . . . . . . . . . . . . . . . . . . Robots Built 8 | . . . . . . . 5 . . . . . 1 . . . . . 2 . . . . Matter 1314 | . . . . . . . 591 . . . . . 153 . . . . . 219 . 351 . . Time 562 | . . . . . . . 313 . . . . . 40 . . . . . 116 . 93 . . Total Robot Build Rating 20 | . . . . . . . 13 . . . . . 1 . . . . . 6 . . . . Part Schematics Acquired 4 | . . . . . 3 . . . . . . . . . . . . . 1 . . . . Parts Built 2 | . . . . . . . . . 2 . . . . . . . . . . . . . . Matter 212 | . . . . . . . . . 212 . . . . . . . . . . . . . . Time 35 | . . . . . . . . . 35 . . . . . . . . . . . . . . Total Part Build Rating 12 | . . . . . . . . . 12 . . . . . . . . . . . . . . Parts Repaired 6 | . . . . . . . . . 3 . 2 . 1 . . . . . . . . . . Time 329 | . . . . . . . . . 162 . 106 . 61 . . . . . . . . . . Parts Recycled . | . . . . . . . . . . . . . . . . . . . . . . . . Recycled Matter . | . . . . . . . . . . . . . . . . . . . . . . . . Retrieved Matter . | . . . . . . . . . . . . . . . . . . . . . . . . Retrieved Components 20 | . 3 . . . 10 . 2 . . . 3 . . . . . . . . . 2 . . Parts Scanalyzed 2 | . . . . . . . . . . . . . . . . . . . 2 . . . . Part Schematics Acquired 1 | . . . . . . . . . . . . . . . . . . . 1 . . . . Parts Damaged . | . . . . . . . . . . . . . . . . . . . . . . . . Bothacking | -11 -10 -10 -10 -9 -8 -8 -7 -7 -7 -7 -7 -7 -6 -6 -6 -6 -6 -6 -5 -5 -4 -4 -4 ------------ Run | Scr Mat Min Exi Min Mat Gar Fac Was Fac Gar Fac Gar Fac Was Fac Gar Fac Gar Fac Gar Fac Was Fac Used RIF Installer 6 | . . . . . . 1 . . . 1 . 1 . . . 1 . 1 . 1 . . . Patrol Navigation 1 | . . . . . . . . . . . . . . . . . . 1 . . . . . Program Shield 1 | . . . . . . . . . . 1 . . . . . . . . . . . . . Autooverride 2 | . . . . . . . . . . . . 1 . . . . . . . 1 . . . Autoassimilate 1 | . . . . . . . . . . . . . . . . 1 . . . . . . . Robots Hacked 136 | . . . . . . . 1 . 1 . 3 12 7 6 . 10 9 20 11 18 23 5 10 Non-combat 21 | . . . . . . . 1 . 1 . . . 3 . . . 2 . 8 . 3 . 3 Combat 115 | . . . . . . . . . . . 3 12 4 6 . 10 7 20 3 18 20 5 7 Autooverrided 13 | . . . . . . . . . . . . . 1 . . . . 1 2 2 5 . 2 Autoassimilated 18 | . . . . . . . . . . . . . . . . . 1 7 . 4 4 . 2 Robot Hacks Applied 117 | . . . . . . . 1 . 1 . 3 14 6 7 . 10 8 12 11 13 15 6 10 start_evac 1 | . . . . . . . . . . . . . . . . . . . 1 . . . . find_chute 4 | . . . . . . . 1 . . . . . 2 . . . . . . . 1 . . map_walls 1 | . . . . . . . . . . . . . . . . . . . 1 . . . . find_fabricator 2 | . . . . . . . . . . . . . 1 . . . . . 1 . . . . drop_inventory 8 | . . . . . . . . . . . . . . . . . 1 . 5 . 1 . 1 find_recycling 1 | . . . . . . . . . . . . . . . . . . . 1 . . . . purge_threat 3 | . . . . . . . . . . . . . . . . . . . . . . . 3 map_route 4 | . . . . . . . . . . . . . . . . . 1 . 1 . 1 . 1 mark_security 1 | . . . . . . . . . . . . . . . . . . . . . . . 1 ignore_targets 13 | . . . . . . . . . . . . . . 7 . . . . . . . 6 . find_garrison 3 | . . . . . . . . . . . . . . . . . . . 1 . 1 . 1 show_paths 1 | . . . . . . . . . . . . . . . . . . . . . 1 . . focus_fire 1 | . . . . . . . . . . . . 1 . . . . . . . . . . . scatter_targeting 1 | . . . . . . . . . . . . 1 . . . . . . . . . . . disrupt_area 2 | . . . . . . . . . . . . . . . . . . . . 2 . . . spike_heat 5 | . . . . . . . . . . . 1 1 . . . 3 . . . . . . . overload_power 2 | . . . . . . . . . . . . . . . . . . . . 1 1 . . amplify_resonance 2 | . . . . . . . . . . . . . 1 . . . . . . . 1 . . reboot_system 7 | . . . . . . . . . . . . 4 . . . . 1 . . 1 . . 1 overwrite_iff 21 | . . . . . . . . . . . 1 1 1 . . 2 1 5 . 4 5 . 1 streamctrl_high 3 | . . . . . . . . . . . . . . . . 1 . . . 2 . . . formatsys_low 1 | . . . . . . . . . 1 . . . . . . . . . . . . . . formatsys_high 30 | . . . . . . . . . . . 1 6 1 . . 4 4 7 . 3 3 . 1 Relay Couplers Released 101 | . . . . . . 12 10 . 2 . 3 13 . . . 13 4 16 3 17 7 . 1 Ejected 18 | . . . . . . . 4 . . . 3 . . . . . 4 . 3 . 4 . . Machine Destruction 74 | . . . . . . 12 . . 2 . . 13 . . . 13 . 16 . 17 . . 1 Programmers 9 | . . . . . . . 6 . . . . . . . . . . . . . 3 . . Attached 45 | . . . . . . . . . 1 . 2 8 1 1 1 4 4 6 2 5 6 . 4 Robots Rewired 4 | . . . . . . . . . . . . 3 . . . . . 1 . . . . . Allies Hacked 4 | . . . . . . . . . . . . . 1 . . . . . 3 . . . . Hacks Repelled . | . . . . . . . . . . . . . . . . . . . . . . . . Allies | -11 -10 -10 -10 -9 -8 -8 -7 -7 -7 -7 -7 -7 -6 -6 -6 -6 -6 -6 -5 -5 -4 -4 -4 -------- Run | Scr Mat Min Exi Min Mat Gar Fac Was Fac Gar Fac Gar Fac Was Fac Gar Fac Gar Fac Gar Fac Was Fac Total Allies 121 | . . . . 2 1 . 5 20 1 . 2 10 4 . . 7 6 21 4 15 17 . 6 Largest Group 21 | . . . . 2 2 1 5 20 21 12 1 4 6 . . 3 4 10 9 3 3 . 2 Highest-Rated Group 534 | . . . . 42 42 10 94 523 534 347 29 161 163 . . 90 122 298 269 78 143 . 98 Highest-Rated Ally 81 | . . . . 31 31 10 21 35 35 35 29 81 34 . . 32 32 47 41 49 58 . 58 Total Orders 51 | . . . . . 9 9 . . . . . 6 5 . . 5 2 12 1 2 . . . STAY 7 | . . . . . . . . . . . . . . . . 1 . 6 . . . . . GOTO 25 | . . . . . 6 7 . . . . . 4 4 . . 2 . . 1 1 . . . FOLLOW 17 | . . . . . 3 2 . . . . . 2 1 . . 2 . 6 . 1 . . . EXPLORE 2 | . . . . . . . . . . . . . . . . . 2 . . . . . . Ally Attacks 787 | . . . . 5 14 . 33 6 168 60 10 50 37 . . 54 48 96 54 63 73 . 16 Total Damage 18815 | . . . . 106 210 . 791 102 4331 1599 109 1451 1040 . . 1093 1209 2193 1199 826 2038 . 518 Kills 155 | . . . . 1 3 . 9 1 43 15 . 13 6 . . 7 10 12 12 6 14 . 3 Allies Corrupted 2 | . . . . . . . . . . . . . . . . . . . 1 . 1 . . Allies Melted 1 | . . . . . . . . . . . 1 . . . . . . . . . . . . Intel | -11 -10 -10 -10 -9 -8 -8 -7 -7 -7 -7 -7 -7 -6 -6 -6 -6 -6 -6 -5 -5 -4 -4 -4 ------- Run | Scr Mat Min Exi Min Mat Gar Fac Was Fac Gar Fac Gar Fac Was Fac Gar Fac Gar Fac Gar Fac Was Fac Robot Analysis Total 2 | . . 2 . . . . . . . . . . . . . . . . . . . . . Derelict Logs Recovered 2 | . . 1 . 1 . . . . . . . . . . . . . . . . . . . Drone Launches 2 | . . . . . . . . . . . . . . . . . 2 . . . . . . Drone Recoveries . | . . . . . . . . . . . . . . . . . . . . . . . . Exploration | -11 -10 -10 -10 -9 -8 -8 -7 -7 -7 -7 -7 -7 -6 -6 -6 -6 -6 -6 -5 -5 -4 -4 -4 ------------- Run | Scr Mat Min Exi Min Mat Gar Fac Was Fac Gar Fac Gar Fac Was Fac Gar Fac Gar Fac Gar Fac Was Fac Turns Passed 30307 | 75 1082 1104 559 979 2447 1818 2201 648 994 610 860 1866 1115 281 470 2506 1094 2521 1946 2254 1380 149 1348 Spaces Moved 16019 | 46 762 754 428 664 1512 866 1323 391 534 376 482 912 649 128 259 1251 526 1103 887 986 547 73 560 Core 23 | 19 . . . . . . . . . . . . . . . . . . . . . . 4 Treads 5295 | . . . . . . 735 . . . 2 1 84 . . 3 1074 526 1103 176 743 547 73 228 Legs 1282 | . . . . . . . . . . . . . . . . . . . 711 243 . . 328 Wheels 9419 | 27 762 754 428 664 1512 131 1323 391 534 374 481 828 649 128 256 177 . . . . . . . Hover . | . . . . . . . . . . . . . . . . . . . . . . . . Flight . | . . . . . . . . . . . . . . . . . . . . . . . . Fastest Speed 50 | 50 90 130 130 130 115 125 120 140 130 140 115 115 130 150 130 130 183 163 150 150 165 170 150 Average Speed 148 | 110 104 130 130 130 124 167 133 140 139 140 115 135 133 150 137 177 183 182 167 180 172 170 163 Slowest Speed 1400 | 200 130 130 130 130 125 178 140 140 140 180 270 270 140 150 200 210 183 183 270 210 200 170 1400 Overloaded Moves . | . . . . . . . . . . . . . . . . . . . . . . . . Propulsion Burnouts . | . . . . . . . . . . . . . . . . . . . . . . . . Robots Hopped . | . . . . . . . . . . . . . . . . . . . . . . . . Cave-ins Triggered 1 | . . . . . . . . . . . . . . . . . . . . . . . 1 Exploration Rate (%) 56 | 4 95 99 71 96 89 82 25 96 18 61 13 85 16 82 6 87 14 94 18 93 15 70 15 Regions Visited 23 Branch Regions 3 Pre-discovered Areas 6 | . 2 . 1 . 2 . 1 . . . . . . . . . . . . . . . . Known Exits Taken 6 | . . . . . 1 . . . 1 . 1 . . . 1 . 1 . 1 . . . . Unknown Exits Taken 5 | 1 1 1 1 1 . . . . . . . . . . . . . . . . . . . Scrap Searched 4 | . . 1 . 3 . . . . . . . . . . . . . . . . . . . Spaces Dug 61 | . 2 . . 2 13 . 14 . 8 . . . . . 6 . 1 1 11 . 2 . 1 Terrain Destroyed 463 | . 46 . . 2 13 . 47 . 12 . 13 12 3 . 23 5 1 2 14 . 126 . 144 Melee 23 | . . . . . . . 9 . . . . . . . . . 1 . 11 . 2 . . Projectile 160 | . 2 . . 2 13 . 3 . . . 7 1 . . 12 5 . 2 3 . 41 . 69 AOE 280 | . 44 . . . . . 35 . 12 . 6 11 3 . 11 . . . . . 83 . 75 Actions | -11 -10 -10 -10 -9 -8 -8 -7 -7 -7 -7 -7 -7 -6 -6 -6 -6 -6 -6 -5 -5 -4 -4 -4 --------- Run | Scr Mat Min Exi Min Mat Gar Fac Was Fac Gar Fac Gar Fac Was Fac Gar Fac Gar Fac Gar Fac Was Fac Total 20586 | 60 922 829 431 726 1885 1089 1568 457 753 423 689 1384 864 188 360 1470 641 1532 1232 1374 797 87 825 Wait 2032 | . 40 49 . 19 198 106 73 3 156 1 103 195 152 19 69 34 64 281 152 228 44 . 46 Move 16001 | 45 761 753 427 663 1511 865 1323 390 533 376 481 911 649 127 259 1250 525 1102 886 985 547 72 560 Hop . | . . . . . . . . . . . . . . . . . . . . . . . . Pick Up 241 | 5 22 . 2 3 25 6 11 2 8 . 13 18 7 6 2 19 6 13 24 14 23 . 12 Fast Attach 136 | 7 1 . . 3 7 2 7 12 13 . 6 9 4 1 2 7 2 5 14 10 9 1 14 Attach 127 | . 6 2 1 1 7 6 6 . 1 1 11 10 4 3 3 11 1 6 10 8 11 . 18 Detach 13 | . . . . . 1 1 3 . 1 . . . 2 . . 2 . . 1 1 . . 1 Swap 181 | . 10 . . 3 14 4 17 5 7 1 9 17 3 3 4 10 8 15 16 2 14 3 16 Drop 287 | . 10 . 1 7 25 6 18 20 17 . 8 25 9 7 5 15 9 14 28 23 21 . 19 Fire 1279 | 3 71 25 . 27 97 85 91 . 17 16 47 140 34 22 12 94 24 68 85 68 124 6 123 Melee 85 | . . . . . . . 11 25 . . . . . . . . 1 15 15 6 2 5 5 Ram 1 | . 1 . . . . . . . . . . . . . . . . . . . . . . Kick 2 | . . . . . . . . . . . . . . . . . . . 1 . . . 1 Crush 11 | . . . . . . . . . . 5 3 . . . . 2 . 1 . . . . . Escape Stasis 188 | . . . . . . 8 8 . . 23 8 59 . . 4 26 . 12 . 28 2 . 10 Rewire 1 | . . . . . . . . . . . . . . . . . . . . 1 . . . Trap . | . . . . . . . . . . . . . . . . . . . . . . . . Miscellaneous 1 | . . . . . . . . . . . . . . . . . 1 . . . . . . Route ------- -11/Scrapyard -10/Materials (discovered 5 exits: *Mat x3 / *Min x2) -10/Mines (discovered 3 exits: *Mat x2 / *Exi) -10/Exiles -9/Mines -8/Materials (discovered 6 exits: *Fac x3 / *Sto x2 / Gar) -8/Garrison (discovered 3 exits: *Fac x3) -7/Factory (discovered 3 exits: *Fac x2 / Gar) -7/Waste -7/Factory -7/Garrison (discovered 3 exits: *Fac x3) -7/Factory (discovered 3 exits: Low x2 / Gar) -7/Garrison (discovered 3 exits: *Fac x3) -6/Factory -6/Waste -6/Factory -6/Garrison (discovered 3 exits: *Fac x3) -6/Factory (discovered 3 exits: *Fac x2 / Gar) -6/Garrison (discovered 3 exits: *Fac x3) -5/Factory (discovered 3 exits: *Fac / [Upp] / Gar) -5/Garrison (discovered 3 exits: *Fac x3) -4/Factory -4/Waste -4/Factory (discovered 6 exits: *Res / Upp x2 / Ext x2 / Arm) History --------- Turn | Location | Event 40 | -11/Scrapyard | Discovered new exit (range 15) 76 | -11/Scrapyard | Entered Materials 216 | -10/Materials | Discovered new exit (range 14) 311 | -10/Materials | Build established: Mutant 413 | -10/Materials | Discovered new exit (range 6) 434 | -10/Materials | Discovered new exit (range 13) 797 | -10/Materials | Discovered new exit (range 5) 876 | -10/Materials | Discovered new exit (range 16) 967 | -10/Materials | Lost 3 parts (1p2w) 1050 | -10/Materials | Central database locked down 1158 | -10/Materials | Entered Mines 1187 | -10/Mines | Met a Derelict bent on vengeance 1220 | -10/Mines | Deemed a non-threat by the Exiles lab entrance 1220 | -10/Mines | Discovered new exit (range 5) 1512 | -10/Mines | Identified exit to Materials 1609 | -10/Mines | Discovered exit to Materials (range 10) 2262 | -10/Mines | Entered Exiles 2297 | -10/Exiles | Met 8R-AWN 2318 | -10/Exiles | Met EX-HEX 2390 | -10/Exiles | Met EX-DEC 2487 | -10/Exiles | Learned location of Zion (-6) 2510 | -10/Exiles | Met EX-BIN 2625 | -10/Exiles | Aligned with FarCom system 2626 | -10/Exiles | Given EX-Vault access code 2657 | -10/Exiles | Opened EX-Vault 2668 | -10/Exiles | Found AWS/Gauss 2696 | -10/Exiles | Warned to stay clear of 0b10 Research branches 2713 | -10/Exiles | Exiles lab attacked by MAIN.C 2809 | -10/Exiles | Discovered new exit (range 10) 2821 | -10/Exiles | Left Exiles lab with AWS/Gauss 2821 | -10/Exiles | Entered Mines 2829 | -9/Mines | Joined a pair of Derelicts in attacking an 0b10 outpost 2836 | -9/Mines | Core integrity fell below 50% 3091 | -9/Mines | Assembled infested the area 3096 | -9/Mines | Assisted by a Guerilla fighting off Assembled 3719 | -9/Mines | Discovered new exit (range 9) 3800 | -9/Mines | Entered Materials 3800 | -8/Materials | Accompanied by 2 allies 3800 | -8/Materials | Evolved 4 slots: Propulsion x1, Utility x2, Weapon x1 3801 | -8/Materials | Identified exit to Storage 3805 | -8/Materials | Led the pair of lost Derelicts to an unsafe place 3882 | -8/Materials | Identified exit to Garrison 4111 | -8/Materials | Build established: Hauler-Skirmisher 4207 | -8/Materials | Discovered new exit (range 16) 5100 | -8/Materials | Discovered new exit (range 15) 5569 | -8/Materials | Discovered new exit (range 15) 6115 | -8/Materials | Discovered exit to Storage (range 16) 6247 | -8/Materials | Entered Garrison 6247 | -8/Garrison | Accompanied by 1 ally 6273 | -8/Garrison | Triggered checkpoint 6291 | -8/Garrison | Garrison Relay disabled 6357 | -8/Garrison | Triggered checkpoint 6520 | -8/Garrison | Triggered checkpoint 6557 | -8/Garrison | Triggered checkpoint 6688 | -8/Garrison | Garrison Relay disabled 6706 | -8/Garrison | Triggered checkpoint 6778 | -8/Garrison | Discovered new exit (range 8) 6989 | -8/Garrison | Triggered checkpoint 7080 | -8/Garrison | Triggered checkpoint 7291 | -8/Garrison | Discovered new exit (range 13) 7445 | -8/Garrison | Triggered checkpoint 7555 | -8/Garrison | Discovered new exit (range 12) 7590 | -8/Garrison | Installed Relay Interface Framework 7646 | -8/Garrison | Triggered checkpoint 7689 | -8/Garrison | Garrison Relay disabled 8065 | -8/Garrison | Entered Factory 8065 | -7/Factory | Evolved 2 slots: Propulsion x1, Utility x1 8406 | -7/Factory | Fabricated H-55 Commando? 8444 | -7/Factory | Garrison activated, responded to threat 8545 | -7/Factory | Fabricated H-55 Commando? 8571 | -7/Factory | Local fabrication network quarantined 8632 | -7/Factory | Garrison activated, responded to threat 8650 | -7/Factory | Fabricated O-16 Technician? 8792 | -7/Factory | Discovered new exit (range 5) 8865 | -7/Factory | First assault squad dispatched 8988 | -7/Factory | Discovered new exit (range 5) 9928 | -7/Factory | Identified exit to Garrison 10266 | -7/Factory | Sucked down chute 10266 | -7/Factory | Entered Waste 10267 | -7/Waste | Joined by Warlord forces that had cleared the area 10498 | -7/Waste | Build established: Bothacker-Skirmisher 10540 | -7/Waste | A Compactor rumbled back to life 10540 | -7/Waste | Allies destroyed C-40 Crusher 10789 | -7/Waste | Found Damper Plating 10861 | -7/Waste | Discovered new exit (range 12) 10914 | -7/Waste | Entered Factory 10914 | -7/Factory | Accompanied by 20 allies 11031 | -7/Factory | Repaired Antimatter Reactor 11090 | -7/Factory | Repaired Hvy. Treads 11111 | -7/Factory | Build established: Hauler-Mutant 11135 | -7/Factory | Repaired Arm. Huge Wheel 11364 | -7/Factory | Fabricated KE Penetrator (x2) 11477 | -7/Factory | Garrison activated, responded to threat 11553 | -7/Factory | Identified exit to Garrison 11621 | -7/Factory | Build established: Hauler-Skirmisher 11789 | -7/Factory | Garrison activated, responded to threat 11854 | -7/Factory | Identified exit to Garrison 11908 | -7/Factory | Entered Garrison 11908 | -7/Garrison | Accompanied by 12 allies 12016 | -7/Garrison | Triggered checkpoint 12019 | -7/Garrison | Triggered checkpoint 12050 | -7/Garrison | Triggered checkpoint 12106 | -7/Garrison | Triggered checkpoint 12151 | -7/Garrison | Discovered new exit (range 11) 12282 | -7/Garrison | Phase Generator disabled 12290 | -7/Garrison | Discovered new exit (range 15) 12331 | -7/Garrison | High security lockdown imminent 12411 | -7/Garrison | High security lockdown engaged 12467 | -7/Garrison | Discovered new exit (range 10) 12494 | -7/Garrison | Expanded RIF knowledge: Program Shield 12518 | -7/Garrison | Entered Factory 12548 | -7/Factory | Lost 7 parts (1p1n2u3w) 12699 | -7/Factory | Identified exit to Lower Caves 12816 | -7/Factory | Build established: Hauler-Mutant 12918 | -7/Factory | First assault squad dispatched 12971 | -7/Factory | Repaired Arm. Huge Wheel 13140 | -7/Factory | Core integrity fell below 50% 13145 | -7/Factory | Repaired Hvy. Disruptor Cannon? 13346 | -7/Factory | Identified exit to Garrison 13374 | -7/Factory | Garrison activated, responded to threat 13378 | -7/Factory | Entered Garrison 13464 | -7/Garrison | Triggered checkpoint 13497 | -7/Garrison | Garrison Relay disabled 13708 | -7/Garrison | Triggered checkpoint 13736 | -7/Garrison | Triggered checkpoint 13817 | -7/Garrison | Triggered checkpoint 13824 | -7/Garrison | Triggered checkpoint 13964 | -7/Garrison | Triggered checkpoint 14013 | -7/Garrison | Discovered new exit (range 10) 14041 | -7/Garrison | Expanded RIF knowledge: Autooverride 14155 | -7/Garrison | Garrison Relay disabled 14387 | -7/Garrison | Discovered new exit (range 12) 14459 | -7/Garrison | Build established: Bothacker-Mutant 14610 | -7/Garrison | Spotted B-75 Beast 14617 | -7/Garrison | Discovered new exit (range 11) 14641 | -7/Garrison | Allies destroyed B-75 Beast 14662 | -7/Garrison | Triggered checkpoint 15063 | -7/Garrison | Garrison Relay disabled 15244 | -7/Garrison | Entered Factory 15244 | -6/Factory | Accompanied by 4 allies 15244 | -6/Factory | Evolved 2 slots: Utility x2 15550 | -6/Factory | Garrison activated, responded to threat 15710 | -6/Factory | Identified exit to Garrison 15848 | -6/Factory | Fabricated O-16 Technician? 16180 | -6/Factory | Repaired Broken Rnf. Deuterium Engine? 16294 | -6/Factory | First assault squad dispatched 16359 | -6/Factory | Sucked down chute 16359 | -6/Factory | Entered Waste 16380 | -6/Waste | Spotted C-40 Crusher 16400 | -6/Waste | Spotted C-40 Crusher 16451 | -6/Waste | Spotted C-40 Crusher 16454 | -6/Waste | Spotted C-40 Crusher 16459 | -6/Waste | Spotted C-40 Crusher 16469 | -6/Waste | Spotted C-40 Crusher 16485 | -6/Waste | Crushed by Compactor (0 parts destroyed, 1 dropped) 16536 | -6/Waste | Found Gamma Bomb Array 16607 | -6/Waste | Destroyed C-40 Crusher 16625 | -6/Waste | Discovered new exit (range 11) 16640 | -6/Waste | Entered Factory 16990 | -6/Factory | First assault squad dispatched 17110 | -6/Factory | Identified exit to Garrison 17110 | -6/Factory | Entered Garrison 17188 | -6/Garrison | Triggered checkpoint 17255 | -6/Garrison | Garrison Relay disabled 17484 | -6/Garrison | Spotted B-75 Beast 17524 | -6/Garrison | Destroyed B-75 Beast 17578 | -6/Garrison | Triggered checkpoint 17664 | -6/Garrison | Triggered checkpoint 17685 | -6/Garrison | Triggered checkpoint 17774 | -6/Garrison | Discovered new exit (range 12) 18050 | -6/Garrison | Discovered new exit (range 12) 18142 | -6/Garrison | Triggered checkpoint 18214 | -6/Garrison | Triggered checkpoint 18259 | -6/Garrison | Lost 3 parts (1n2w) 18297 | -6/Garrison | Garrison Relay disabled 18332 | -6/Garrison | Triggered checkpoint 18786 | -6/Garrison | Triggered checkpoint 18848 | -6/Garrison | Garrison Relay disabled 18901 | -6/Garrison | Discovered new exit (range 14) 18940 | -6/Garrison | Expanded RIF knowledge: Autoassimilate 19245 | -6/Garrison | Build established: Bothacker-Skirmisher 19616 | -6/Garrison | Entered Factory 19616 | -6/Factory | Accompanied by 2 allies 19724 | -6/Factory | Discovered new exit (range 84) 19863 | -6/Factory | Identified exit to Garrison 19986 | -6/Factory | Discovered new exit (range 5) 20128 | -6/Factory | Garrison activated, responded to threat 20365 | -6/Factory | Build established: Bothacker-Mutant 20548 | -6/Factory | Garrison activated, responded to threat 20666 | -6/Factory | First assault squad dispatched 20710 | -6/Factory | Entered Garrison 20710 | -6/Garrison | Accompanied by 3 allies 20794 | -6/Garrison | Triggered checkpoint 20815 | -6/Garrison | Garrison Relay disabled 21264 | -6/Garrison | Spotted B-75 Beast 21300 | -6/Garrison | Triggered checkpoint 21316 | -6/Garrison | Triggered checkpoint 21359 | -6/Garrison | Triggered checkpoint 21363 | -6/Garrison | Triggered checkpoint 21486 | -6/Garrison | Discovered new exit (range 10) 21515 | -6/Garrison | Expanded RIF knowledge: Patrol Navigation 21771 | -6/Garrison | Discovered new exit (range 9) 22036 | -6/Garrison | Triggered checkpoint 22049 | -6/Garrison | Garrison Relay disabled 22221 | -6/Garrison | Discovered new exit (range 12) 22330 | -6/Garrison | Triggered checkpoint 22388 | -6/Garrison | Garrison Relay disabled 22667 | -6/Garrison | Build established: Bothacker-Assassin 22774 | -6/Garrison | Triggered checkpoint 22793 | -6/Garrison | Garrison Relay disabled 23231 | -6/Garrison | Entered Factory 23231 | -5/Factory | Accompanied by 9 allies 23231 | -5/Factory | Evolved 2 slots: Utility x2 23431 | -5/Factory | Discovered new exit (range 61) 23642 | -5/Factory | Discovered new exit (range 4) 23831 | -5/Factory | First assault squad dispatched 24107 | -5/Factory | Build established: Bothacker-Mutant 24153 | -5/Factory | Fabricated H-55 Commando? 25068 | -5/Factory | Build established: Hauler-Mutant 25164 | -5/Factory | Identified exit to Garrison 25177 | -5/Factory | Entered Garrison 25274 | -5/Garrison | Triggered checkpoint 25339 | -5/Garrison | Garrison Relay disabled 25408 | -5/Garrison | Spotted B-75 Beast 25449 | -5/Garrison | Build established: Bothacker-Mutant 25794 | -5/Garrison | Destroyed B-75 Beast 25864 | -5/Garrison | Triggered checkpoint 25884 | -5/Garrison | Triggered checkpoint 25892 | -5/Garrison | Triggered checkpoint 25894 | -5/Garrison | Triggered checkpoint 26057 | -5/Garrison | Discovered new exit (range 9) 26086 | -5/Garrison | Expanded RIF knowledge: Autooverride 26148 | -5/Garrison | Triggered checkpoint 26192 | -5/Garrison | Garrison Relay disabled 26372 | -5/Garrison | Discovered new exit (range 8) 26424 | -5/Garrison | Triggered checkpoint 26454 | -5/Garrison | Garrison Relay disabled 26805 | -5/Garrison | Build established: Botlord-Skirmisher 27074 | -5/Garrison | Discovered new exit (range 10) 27162 | -5/Garrison | Triggered checkpoint 27179 | -5/Garrison | Garrison Relay disabled 27431 | -5/Garrison | Entered Factory 27431 | -4/Factory | Accompanied by 2 allies 27431 | -4/Factory | Evolved 2 slots: Propulsion x1, Utility x1 27452 | -4/Factory | Build established: Botlord-Mutant 27681 | -4/Factory | First assault squad dispatched 28316 | -4/Factory | Local fabrication network quarantined 28503 | -4/Factory | Garrison activated, responded to threat 28733 | -4/Factory | Lost 4 parts (2n2w) 28811 | -4/Factory | Sucked down chute 28811 | -4/Factory | Entered Waste 28826 | -4/Waste | EMP discharged 28826 | -4/Waste | System corruption reached 10% 28844 | -4/Waste | Spotted C-40 Crusher 28847 | -4/Waste | Spotted C-40 Crusher 28850 | -4/Waste | Spotted C-40 Crusher 28854 | -4/Waste | Spotted C-40 Crusher 28886 | -4/Waste | Spotted C-40 Crusher 28916 | -4/Waste | Spotted C-40 Crusher 28926 | -4/Waste | EMP discharged 28943 | -4/Waste | Discovered new exit (range 10) 28960 | -4/Waste | Entered Factory 29027 | -4/Factory | Discovered new exit (range 37) 29210 | -4/Factory | First assault squad dispatched 29284 | -4/Factory | Identified exit to Research 29306 | -4/Factory | Identified exit to Upper Caves 29306 | -4/Factory | Identified exit to Extension 29306 | -4/Factory | Identified exit to Armory 29371 | -4/Factory | System corruption reached 30% 29688 | -4/Factory | Crushed by falling debris 29860 | -4/Factory | Lost 3 parts (1p2n) 29931 | -4/Factory | Build established: Bothacker-Mutant 30075 | -4/Factory | Lost 3 parts (2n1w) 30141 | -4/Factory | Garrison activated, responded to threat 30212 | -4/Factory | Core integrity fell below 50% 30214 | -4/Factory | Lost 8 parts (1p3n4u) 30295 | -4/Factory | Core integrity fell below 20% 30308 | -4/Factory | Destroyed self with Gamma Bomb Array Last Messages --------------- 30298_ K-01 Serf collects debris. 30298_ K-01 Serf destroyed. 30299_ Acquired 19 matter. 30300_ Slug penetrates H-77 Assassin. 30300_ Slug penetrates R-10 Processor. 30300_ Slug penetrates Assembly Bed. 30300_ Critical hit. 30300_ AWS/Gauss destroyed. 30301_ R-10 Processor collects Com. Wheel. 30301_ R-10 Processor collects Imp. Cooling System. 30302_ K-01 Serf collects debris. 30304_ R-10 Processor collects Unknown Device. 30304_ R-10 Processor collects Imp. Treads. 30305_ U-05 Engineer lays Concrete. 30305_ R-10 Processor collects Lgt. Antimatter Reactor. 30305_ Penetrated by Slug. 30305_ K-01 Serf collects debris. 30306_ U-05 Engineer lays Concrete. 30307_ U-05 Engineer builds a Door. 30308_ R-10 Processor collects HERF Cannon. Map ----- +----------------------------------------------------+ | ???????????????# / # # #??????? | | ???????????????# [ # # """ #??????? | | ??????????????## ## """ #??????? | | ??????????????# ! # ## """ #??????? | | ???????????????# ## "" #??????? | | ???????????????# # ## "" #??????? | | ???????????????## #### ? #??????? | | ???????????????# ##??####?###??????? | | ???????????????# # ###/## # ###??????????????? | | ####???????????### # =[ ! #??????????????? | | #?????????????##?## ! #??????????????? | | #?????????????????# %* !!!#??????????????? | | #?????????????????# | !! #???????????? ?? | | ####?????????????????# !! #?????????? #? | | ?????????????????????#"# #????????? #? | | ?????????????????????### ######### #? | | ??????????????????????## i #? | | ????????????????"?????##u""## #? | | ????????????????""?????# #### w [ """ """???? | | ???????????????? ???## #??# % """ "?????? | | ?????????????????"" ??#;%##?# """ """ ?? | | ??????????????????" ?#;;######+#### #? | | ??????????????????? ##; g # """ """ #? | | ???????????????????? /%; """" # """ """???? | | ?????????????????????###%% "" # """ "?????? | | ????????????????""???# ; @ "" # ?????? | | ??????????????" """ ##; g% " # %"" "?????? | | ??????????# %;%/ghRR%= % # """ "?????? | | ??????????# ! ### g %[R % # %"" ""????? | | ??????????????####+#???##;=%%;##+### ??????? | | ???????????????????????? [=*]k ? ? """???????? | | ???????????????????????? [% ? ""????????? | | ???>???????????????????? t=*= "?????????? | | ???????????????????????? ?????????? | | ????????????????????????u u ?????????? | | ????????????????????????;;; ;;;/k#######?????????? | | ???????????????????????? ; ???????????????? | | ???????????????????????? ; ??????????????? | | ???????????????????????? ; ???????????????? | | ???????????????????????? ; ?????????????????? | | ???????????????????????? ; ????????????????????? | | ?????????????????????????????????????????????????? | | ?????????????????????????????????????????????????? | | ??????????????????????????G??????????????????????? | | ?????????????????????????????????????????????????? | | ?????????????????????????????????????????????????? | | ?????????????????????????????????????????????????? | | ?????????????????????????????????????????????????? | | ?????????????????????????????????????????????????? | | ?????????????????????????????????????????????????? | +----------------------------------------------------+ Best States ------------- Heat Dissipation 70 Energy Generation 21 Energy Capacity 790 Matter Stores 443 Matter Capacity 500 Sight Range 16 Terrain Scan Range 20 Terrain Scan Density 10 EM Shielding 2 Armor Coverage 1200 Resistance: TH 30 Resistance: EM 90 Power Shielding 90 Weapon Cycling 20 Evasion (%) 42 Targeting Accuracy 8 Core Analysis 8 Recoil Reduction 5 Particle Charging 25 Kinecelleration 40 Item Schematics ----------------- Arm. Treads | -8/Materials | Hacked Arm. Wheel | -8/Materials | Hacked Hacking Suite | -8/Materials | Hacked Gamma Bomb Array | -5/Factory | Scanalyzed Robot Schematics ------------------ O-16 Technician | -10/Materials | Hacked M-28 Smith | -8/Materials | Hacked H-55 Commando | -8/Materials | Hacked Fabricated ------------ H-55 Commando | x2 | -7/Factory H-55 Commando | x2 | -7/Factory O-16 Technician | x1 | -7/Factory KE Penetrator | x2 | -7/Factory | Preloaded O-16 Technician | x1 | -6/Factory H-55 Commando | x2 | -5/Factory Alien Tech Used ----------------- None Achievements -------------- Pwned Challenges ------------ None Game ------ Seed HeavyMomentumWell Manual? 0 Play Time 04:12:53 Cumulative 334.3 hours Start 2020.02.28 @ 14:25:04 End 2020.02.29 @ 20:27:01 Sessions 3 Manual Loads 0 Difficulty Rogue Special Mode None Game No. 240 Rogue 240 Adventurer 0 Explorer 0 Win Type - Total 3 Types 3/0/0/0/0/0/0 Lore% 76 Gallery% 83 Achievement% 61 Wizard Run 0 Options --------- ASCII 0 Keyboard 0 Movement Mouse Keybinds 1 Fullscreen 2 Font 24/Smallcaps Map View 76x50 Tactical HUD 1 Map Filters NONE Filters NONE Steam 1 RUN: b02c5696-2fc5-4f84-b4a4-d4f2688acae6